bitfinex/quotes_BTCUSD_20230117
["timestamp","ask_amount","ask_price","bid_price","bid_amount"]
[1673936072588,0.009,21125.0,21124.0,0.79025274]
[1673936075174,0.009,21125.0,21124.0,0.49025274]
[1673936076992,0.009,21125.0,21124.0,0.01685774]
[1673936076993,0.249,21125.0,21124.0,0.01685774]
[1673936077251,0.570857,21125.0,21124.0,0.01685774]
[1673936077527,0.691357,21125.0,21124.0,0.01685774]
[1673936080855,0.3695,21125.0,21124.0,0.01685774]
[1673936081340,0.691357,21125.0,21124.0,0.01685774]
[1673936082129,0.3695,21125.0,21124.0,0.01685774]
[1673936082646,0.691357,21125.0,21124.0,0.01685774]
[1673936083170,0.3695,21125.0,21124.0,0.01685774]
[1673936083644,0.691357,21125.0,21124.0,0.01685774]
[1673936084212,0.3695,21125.0,21124.0,0.01685774]
[1673936084416,0.98772494,21125.0,21124.0,0.01685774]
[1673936084668,1.92642469,21125.0,21124.0,0.01685774]
[1673936084921,1.31252577,21125.0,21124.0,0.01685774]
[1673936085193,1.08902577,21125.0,21124.0,0.01685774]
[1673936085464,0.76716877,21125.0,21124.0,0.01685774]
[1673936085717,1.08902577,21125.0,21124.0,0.01685774]
[1673936086221,0.75816877,21125.0,21124.0,0.01685774]
[1673936086481,1.07993841,21125.0,21124.0,0.01685774]
[1673936087522,1.19193841,21125.0,21124.0,0.01685774]
[1673936087786,1.20093841,21125.0,21124.0,0.01685774]
[1673936088313,1.34221752,21125.0,21124.0,0.01685774]
[1673936088849,1.55413619,21125.0,21124.0,0.01685774]
[1673936089142,1.45421752,21125.0,21124.0,0.01685774]
[1673936089481,1.66613619,21125.0,21124.0,0.01685774]
[1673936089999,1.45421752,21125.0,21124.0,0.01685774]
[1673936090535,1.55413619,21125.0,21124.0,0.01685774]
[1673936091338,1.73776585,21125.0,21124.0,0.01685774]
[1673936091842,2.35256583,21125.0,21124.0,0.01685774]
[1673936092100,2.82976752,21125.0,21124.0,0.01685774]
[1673936092370,3.14488432,21125.0,21124.0,0.01685774]
[1673936092625,4.06088846,21125.0,21124.0,0.01685774]
[1673936092904,3.07350756,21125.0,21124.0,0.01685774]
[1673936093157,2.79074958,21125.0,21124.0,0.01685774]
[1673936093429,2.93216721,21125.0,21124.0,0.01685774]
[1673936093696,2.46663278,21125.0,21124.0,0.01685774]
[1673936093953,2.47563278,21125.0,21124.0,0.01685774]
[1673936094225,3.06957028,21125.0,21124.0,0.01685774]
[1673936094486,2.99444846,21125.0,21124.0,0.01685774]
[1673936094775,2.54627008,21125.0,21124.0,0.01685774]
[1673936095028,2.617034,21125.0,21124.0,0.01685774]
[1673936095821,3.66721487,21125.0,21124.0,0.01685774]
[1673936096072,3.73789455,21125.0,21124.0,0.01685774]
[1673936096327,4.8763636,21125.0,21124.0,0.01685774]
[1673936096588,3.92920788,21125.0,21124.0,0.01685774]
[1673936096882,3.42280167,21125.0,21124.0,0.01685774]
[1673936097126,2.47562943,21125.0,21124.0,0.01685774]
[1673936097485,2.00225743,21125.0,21124.0,0.01685774]
[1673936098201,1.93155034,21125.0,21124.0,0.01685774]
[1673936098448,1.7901401,21125.0,21124.0,0.01685774]
[1673936099222,1.6781401,21125.0,21124.0,0.01685774]
[1673936100519,1.20093841,21125.0,21124.0,0.01685774]
[1673936101776,0.76708141,21125.0,21124.0,0.01685774]
[1673936102840,0.87908141,21125.0,21124.0,0.01685774]
[1673936103095,1.20093841,21125.0,21124.0,0.01685774]
[1673936104384,1.19243841,21125.0,21124.0,0.01685774]
[1673936104664,0.87058141,21125.0,21124.0,0.01685774]
[1673936104897,0.75858141,21125.0,21124.0,0.01685774]
[1673936105247,0.24891264,21125.0,21124.0,0.01685774]
[1673936105438,0.24891264,21125.0,21124.0,0.0169263]
[1673936105693,0.24891264,21125.0,21124.0,0.4903213]
[1673936105965,0.24891264,21125.0,21124.0,0.7903213]
[1673936106479,0.24891264,21125.0,21124.0,0.49025274]
[1673936106748,0.24891264,21125.0,21124.0,0.4903213]
[1673936107261,0.24891264,21125.0,21124.0,0.7903213]
[1673936108038,0.24891264,21125.0,21124.0,0.49025274]
[1673936109335,0.24891264,21125.0,21124.0,0.01685774]
[1673936109599,0.24891264,21125.0,21124.0,0.0169263]
[1673936109891,0.24891264,21125.0,21124.0,0.01685774]
[1673936110136,0.24891264,21125.0,21124.0,0.49025274]
[1673936110442,0.24891264,21125.0,21124.0,0.79025274]
[1673936110648,0.24891264,21125.0,21124.0,0.90225274]
[1673936110909,0.24879546,21125.0,21124.0,0.9023213]
[1673936111170,0.24879546,21125.0,21124.0,1.04409724]
[1673936111432,0.24879546,21125.0,21124.0,0.9023213]
[1673936112235,0.24879546,21125.0,21124.0,1.53994951]
[1673936112504,0.24879546,21125.0,21124.0,1.36885615]
[1673936112754,0.24879546,21125.0,21124.0,1.0143213]
[1673936112971,0.24879546,21125.0,21124.0,1.53993699]
[1673936113512,0.24879546,21125.0,21124.0,1.39816105]
[1673936113765,0.24879546,21125.0,21124.0,1.5397975]
[1673936114257,0.24879546,21125.0,21124.0,1.39816105]
[1673936114813,0.24879546,21125.0,21124.0,1.0143213]
[1673936115331,0.24879546,21125.0,21124.0,0.90225274]
[1673936115887,0.18972526,21125.0,21124.0,1.67881476]
[1673936116146,0.18972526,21125.0,21124.0,1.3323073]
[1673936116428,0.18972526,21125.0,21124.0,1.44128984]
[1673936116685,0.18072526,21125.0,21124.0,1.72437951]
[1673936117137,0.18072526,21125.0,21124.0,1.72437951]
[1673936117398,0.18972526,21125.0,21124.0,1.37035954]
[1673936117667,0.18072526,21125.0,21124.0,1.37035954]
[1673936117921,0.18972526,21125.0,21124.0,1.37035954]
[1673936118208,0.18972526,21125.0,21124.0,1.58266099]
[1673936118474,0.18972526,21125.0,21124.0,1.58260073]
[1673936118738,0.18972526,21125.0,21124.0,1.44100741]
[1673936119265,0.18972526,21125.0,21124.0,1.44100671]
[1673936119516,0.18972526,21125.0,21124.0,1.72437951]
[1673936119787,0.18972526,21125.0,21124.0,1.58259915]
[1673936120593,0.18972526,21125.0,21124.0,1.72437951]
[1673936121090,0.18972526,21125.0,21124.0,1.72423885]
[1673936121094,0.18972526,21125.0,21124.0,1.66385519]
[1673936121366,0.18972526,21125.0,21124.0,1.59321566]
[1673936121659,0.18972526,21125.0,21124.0,1.38616665]
[1673936121660,0.09941548,21125.0,21124.0,1.38616665]
[1673936122213,0.09941548,21125.0,21124.0,2.02252275]
[1673936122729,0.09941548,21125.0,21124.0,1.38616665]
[1673936122985,0.09941548,21125.0,21124.0,1.811512]
[1673936123246,0.09941548,21125.0,21124.0,1.73960514]
[1673936123542,0.09941548,21125.0,21124.0,1.38616665]
[1673936124030,0.09941548,21125.0,21124.0,1.73956407]
[1673936124562,0.09941548,21125.0,21124.0,2.02228524]
[1673936124835,0.09941548,21125.0,21124.0,1.73956407]
[1673936125656,0.09941548,21125.0,21124.0,2.02221877]
[1673936127443,0.09941548,21125.0,21124.0,1.73956407]
[1673936127951,0.09941548,21125.0,21124.0,1.38616665]
[1673936128232,0.09941548,21125.0,21124.0,1.73936299]
[1673936128511,0.09941548,21125.0,21124.0,1.66867403]
[1673936129001,0.09941548,21125.0,21124.0,1.88055497]
[1673936129254,0.09941548,21125.0,21124.0,1.65755819]
[1673936130039,0.09941548,21125.0,21124.0,1.65755998]
[1673936130290,0.09941548,21125.0,21124.0,1.65755676]
[1673936130544,0.09941548,21125.0,21124.0,1.44567725]
[1673936131065,0.09941548,21125.0,21124.0,1.51631015]
[1673936132119,0.09941548,21125.0,21124.0,0.75691782]
[1673936133058,0.11899656,21125.0,21124.0,0.75691782]
[1673936133564,0.11899656,21125.0,21124.0,0.61563984]
[1673936133831,0.11899656,21125.0,21124.0,0.91563984]
[1673936136143,0.11899656,21125.0,21124.0,1.05691782]
[1673936136708,0.09728169,21125.0,21124.0,1.5686778]
[1673936137241,0.09728169,21125.0,21124.0,1.26924368]
[1673936137498,0.09728169,21125.0,21124.0,1.05708419]
[1673936137756,0.09728169,21125.0,21124.0,1.28440042]
[1673936138023,0.09728169,21125.0,21124.0,1.5669078]
[1673936138272,0.09728169,21125.0,21124.0,1.26931635]
[1673936138540,0.09728169,21125.0,21124.0,1.42602152]
[1673936139047,0.09728169,21125.0,21124.0,1.26931635]
[1673936139298,0.09728169,21125.0,21124.0,1.42602154]
[1673936139563,0.09728169,21125.0,21124.0,1.42590751]
[1673936140072,0.08828169,21125.0,21124.0,1.28457931]
[1673936140335,0.08928169,21125.0,21124.0,1.36757931]
[1673936141318,0.08928169,21125.0,21124.0,1.65008669]
[1673936141553,0.08928169,21125.0,21124.0,1.79112354]
[1673936142554,0.08928169,21125.0,21124.0,1.7918199]
[1673936144345,0.08928169,21125.0,21124.0,1.15541982]
[1673936144348,0.08928169,21125.0,21124.0,1.23121982]
[1673936144599,0.08928169,21125.0,21124.0,1.97003365]
[1673936145128,0.04800605,21125.0,21124.0,1.4616883]
[1673936145394,0.04900605,21125.0,21124.0,1.5446883]
[1673936145660,0.47962811,21130.0,21125.0,0.1]
[1673936145923,0.47962811,21130.0,21129.0,0.50611972]
[1673936146196,0.04882811,21130.0,21129.0,2.0347929]
[1673936146491,0.59580269,21134.0,21129.0,1.871849]
[1673936146780,0.59580269,21134.0,21130.0,0.5391439]
[1673936147041,0.59580269,21134.0,21131.0,1.1095403]
[1673936147307,0.6438595,21134.0,21131.0,1.1095403]
[1673936147608,0.50244926,21134.0,21131.0,0.9465964]
[1673936148408,0.07885087,21134.0,21132.0,0.3]
[1673936148676,0.07885087,21134.0,21133.0,0.473193]
[1673936148954,0.07885087,21134.0,21133.0,1.22968479]
[1673936149225,0.26279406,21134.0,21133.0,1.00327557]
[1673936149526,0.26979406,21134.0,21133.0,1.53117597]
[1673936149790,0.26979406,21134.0,21133.0,1.61395664]
[1673936150043,0.26979406,21134.0,21133.0,0.87707557]
[1673936151155,0.26379406,21134.0,21133.0,1.17707557]
[1673936151423,0.26379406,21134.0,21133.0,1.26307557]
[1673936151424,0.26279406,21134.0,21133.0,1.26307557]
[1673936151690,0.26379406,21134.0,21133.0,1.26307557]
[1673936160658,0.26279406,21134.0,21133.0,1.17707557]
[1673936160933,0.26279406,21134.0,21133.0,1.26207557]
[1673936160934,0.26379406,21134.0,21133.0,1.26207557]
[1673936162203,0.26379406,21134.0,21133.0,1.40370414]
[1673936162779,0.26379406,21134.0,21133.0,1.26207557]
[1673936164526,0.26379406,21134.0,21133.0,1.37367557]
[1673936165071,0.26379406,21134.0,21133.0,1.07367557]
[1673936165892,0.26379406,21134.0,21133.0,1.49640827]
[1673936166166,0.22216594,21134.0,21133.0,1.5504204]
[1673936166427,0.22216594,21134.0,21133.0,1.93777047]
[1673936166948,0.22216594,21134.0,21133.0,1.62673777]
[1673936167203,0.22216594,21134.0,21133.0,1.93777047]
[1673936167493,0.22216594,21134.0,21133.0,1.8392096]
[1673936167725,0.22216594,21134.0,21133.0,1.93777047]
[1673936168045,0.22216594,21134.0,21133.0,1.62673777]
[1673936169014,0.22216594,21134.0,21133.0,1.48537557]
[1673936169518,0.22216594,21134.0,21133.0,1.79640827]
[1673936170276,0.22216594,21134.0,21133.0,1.93777047]
[1673936170789,0.22216594,21134.0,21133.0,2.41150325]
[1673936171044,0.22216594,21134.0,21133.0,2.27014394]
[1673936171308,0.22216594,21134.0,21133.0,2.41136152]
[1673936171570,0.22216594,21134.0,21133.0,2.55343972]
[1673936171859,9.4e-07,21134.0,21133.0,2.55343972]
[1673936172105,0.0037723,21136.0,21134.0,0.1]
[1673936172363,0.0037723,21136.0,21135.0,1.95343156]
[1673936172643,0.0037723,21136.0,21135.0,2.14213156]
[1673936172924,0.0037723,21136.0,21135.0,1.830444]
[1673936173478,0.0037723,21136.0,21135.0,2.080444]
[1673936173739,0.0037723,21136.0,21135.0,2.167444]
[1673936174523,0.0037723,21136.0,21135.0,2.64207546]
[1673936174779,0.0037723,21136.0,21135.0,2.59083156]
[1673936175054,0.0037723,21136.0,21135.0,2.34990568]
[1673936175876,0.0037723,21136.0,21135.0,2.20888223]
[1673936176686,0.0037723,21136.0,21135.0,2.35007949]
[1673936176947,0.0223617,21136.0,21135.0,2.35007949]
[1673936177221,0.0223617,21136.0,21135.0,2.56255132]
[1673936177475,0.0223617,21136.0,21135.0,2.20888223]
[1673936179024,0.0223617,21136.0,21135.0,2.23907949]
[1673936179821,0.2623617,21136.0,21135.0,2.23907949]
[1673936180330,0.2623617,21136.0,21135.0,2.60171311]
[1673936180886,0.2623617,21136.0,21135.0,2.46051585]
[1673936181193,0.2623617,21136.0,21135.0,2.74381163]
[1673936181456,0.0223617,21136.0,21135.0,2.74381163]
[1673936181978,0.0223617,21136.0,21135.0,2.23917654]
[1673936182246,7e-07,21136.0,21135.0,2.7243144]
[1673936182541,7e-07,21136.0,21135.0,2.86631587]
[1673936183373,7e-07,21136.0,21135.0,2.72466798]
[1673936184110,7e-07,21136.0,21135.0,2.86524194]
[1673936184114,5.8e-07,21137.0,21136.0,0.1]
[1673936184366,0.00416454,21139.0,21136.0,1.38279673]
[1673936184636,0.00416454,21139.0,21138.0,0.57692301]
[1673936184893,0.00416454,21139.0,21138.0,2.87167674]
[1673936185411,0.00416454,21139.0,21138.0,2.87292354]
[1673936185939,0.00416454,21139.0,21138.0,2.96492354]
[1673936186195,0.00416454,21139.0,21138.0,2.177419]
[1673936186447,0.00416454,21139.0,21138.0,2.0360898]
[1673936186708,0.00416454,21139.0,21138.0,2.177419]
[1673936187467,0.00416454,21139.0,21138.0,2.38941281]
[1673936187741,0.00334961,21139.0,21138.0,2.86467306]
[1673936187979,0.00334961,21139.0,21138.0,2.86468111]
[1673936188237,0.00334961,21139.0,21138.0,2.49137175]
[1673936188504,0.00334961,21139.0,21138.0,3.00587782]
[1673936188783,0.00334961,21139.0,21138.0,2.55060011]
[1673936189272,0.00334961,21139.0,21138.0,2.0658152]
[1673936190308,0.23334961,21139.0,21138.0,2.0658152]
[1673936190824,0.23334961,21139.0,21138.0,1.9244898]
[1673936193141,0.30689319,21139.0,21138.0,2.61198692]
[1673936193679,0.30689319,21139.0,21138.0,2.7533419]
[1673936193919,0.30689319,21139.0,21138.0,2.37977021]
[1673936194194,0.30689319,21139.0,21138.0,2.86537043]
[1673936194418,0.30689319,21139.0,21138.0,3.11537043]
[1673936194674,0.30689319,21139.0,21138.0,2.42782551]
[1673936195941,0.30689319,21139.0,21138.0,2.2864898]
[1673936196194,0.30689319,21139.0,21138.0,2.8014973]
[1673936196439,0.30689319,21139.0,21138.0,2.94282]
[1673936196728,0.30689319,21139.0,21138.0,2.66016159]
[1673936198213,0.30689319,21139.0,21138.0,2.94282]
[1673936198470,0.30689319,21139.0,21138.0,2.42790509]
[1673936198724,0.23334961,21139.0,21138.0,2.42790509]
[1673936198977,0.23334961,21139.0,21138.0,2.5278989]
[1673936199487,0.23334961,21139.0,21138.0,2.8418436]
[1673936199748,0.23334961,21139.0,21138.0,3.28544302]
[1673936200005,0.23334961,21139.0,21138.0,2.97149832]
[1673936200226,0.23334961,21139.0,21138.0,2.68883991]
[1673936202076,0.23334961,21139.0,21138.0,2.97171144]
[1673936202353,0.23334961,21139.0,21138.0,2.54768001]
[1673936203373,0.23334961,21139.0,21138.0,3.14449624]
[1673936204157,0.23334961,21139.0,21138.0,3.28565614]
[1673936204412,0.23334961,21139.0,21138.0,2.68883991]
[1673936204663,0.32371199,21139.0,21138.0,2.83070561]
[1673936205677,0.32371199,21139.0,21138.0,2.97180489]
[1673936205940,0.32371199,21139.0,21138.0,2.68883991]
[1673936206463,0.05360294,21141.0,21139.0,0.14897857]
[1673936206747,0.05360294,21141.0,21140.0,2.06644918]
[1673936207067,0.00454017,21141.0,21140.0,2.06644918]
[1673936207293,0.00454017,21141.0,21140.0,2.76914277]
[1673936207552,0.00454017,21141.0,21140.0,2.98965289]
[1673936207816,0.00367614,21141.0,21140.0,2.96965289]
[1673936208591,0.0036211,21143.0,21140.0,2.96965289]
[1673936208859,0.0036211,21143.0,21141.0,0.65373799]
[1673936209130,0.0036211,21143.0,21142.0,1.418976]
[1673936209381,0.0036211,21143.0,21142.0,1.718976]
[1673936209904,0.0036211,21143.0,21142.0,1.968976]
[1673936210924,0.1154211,21143.0,21142.0,1.968976]
[1673936211176,0.1154211,21143.0,21142.0,2.12371777]
[1673936212956,0.1154211,21143.0,21142.0,1.98222257]
[1673936214329,0.1154211,21143.0,21142.0,2.12371777]
[1673936214589,0.0036211,21143.0,21142.0,2.12371777]
[1673936215313,0.0036211,21143.0,21142.0,2.33596056]
[1673936216864,0.0036211,21143.0,21142.0,2.52505968]
[1673936217381,0.0036211,21143.0,21142.0,2.38356448]
[1673936217917,0.0036211,21143.0,21142.0,2.52513111]
[1673936218189,0.0036211,21143.0,21142.0,1.98222257]
[1673936218443,0.0036211,21143.0,21142.0,2.1237892]
[1673936220318,0.0036211,21143.0,21142.0,2.33603199]
[1673936220570,0.0036211,21143.0,21142.0,2.52505261]
[1673936221378,0.0036211,21143.0,21142.0,2.80786098]
[1673936222173,0.0036211,21143.0,21142.0,2.52490968]
[1673936222422,0.0036211,21143.0,21142.0,2.80824189]
[1673936222689,0.0036211,21143.0,21142.0,2.6671212]
[1673936223713,0.0036211,21143.0,21142.0,2.12267809]
[1673936223971,0.00445288,21144.0,21143.0,0.0505969]
[1673936224215,0.00445288,21144.0,21143.0,0.66525487]
[1673936224722,0.00445288,21144.0,21143.0,0.5235659]
[1673936224971,0.00445288,21144.0,21143.0,0.7735659]
[1673936225469,0.00445288,21144.0,21143.0,1.0735659]
[1673936225726,0.00445288,21144.0,21143.0,1.0765659]
[1673936227275,0.00445288,21144.0,21143.0,1.07775319]
[1673936231150,0.00451485,21144.0,21143.0,0.7765659]
[1673936231412,0.00445288,21144.0,21143.0,1.07668448]
[1673936231669,0.00445288,21144.0,21143.0,1.0765659]
[1673936232455,0.00445288,21144.0,21143.0,1.07668448]
[1673936233190,0.00445288,21144.0,21143.0,1.21837345]
[1673936233719,0.00445288,21144.0,21143.0,1.4308926]
[1673936234465,0.00445288,21144.0,21143.0,1.62064865]
[1673936234719,0.00445288,21144.0,21143.0,1.07668448]
[1673936238577,0.00445288,21144.0,21143.0,1.6214462]
[1673936239628,0.00445288,21144.0,21143.0,1.21837345]
[1673936239897,0.00445288,21144.0,21143.0,1.07668448]
[1673936240168,0.00445288,21144.0,21143.0,1.62160576]
[1673936240716,0.00445288,21144.0,21143.0,1.4308926]
[1673936241422,0.00445288,21144.0,21143.0,1.76335197]
[1673936241682,0.00445288,21144.0,21143.0,1.76344392]
[1673936242171,0.00445288,21144.0,21143.0,1.55083282]
[1673936242427,0.00445288,21144.0,21143.0,1.90449931]
[1673936243397,0.00445288,21144.0,21143.0,1.6218361]
[1673936244645,0.00438594,21144.0,21143.0,1.6218361]
[1673936245168,0.00438594,21144.0,21143.0,1.76376087]
[1673936245687,0.00438594,21144.0,21143.0,1.21847386]
[1673936246197,0.00438594,21144.0,21143.0,1.43114583]
[1673936246454,0.00438594,21144.0,21143.0,1.21847386]
[1673936246708,0.00438594,21144.0,21143.0,1.76377453]
[1673936249304,0.00438594,21144.0,21143.0,1.21848052]
[1673936249849,0.00438594,21144.0,21143.0,1.7634608]
[1673936251362,0.00438594,21144.0,21143.0,1.21848191]
[1673936253680,0.00438594,21144.0,21143.0,1.62182459]
[1673936253927,0.00438594,21144.0,21143.0,1.48002442]
[1673936254696,0.00438594,21144.0,21143.0,1.21848129]
[1673936254949,0.00438594,21144.0,21143.0,1.7637762]
[1673936255451,0.00438594,21144.0,21143.0,1.21848532]
[1673936257024,0.24497459,21145.0,21143.0,1.21848532]
[1673936257301,0.10356435,21145.0,21144.0,0.3]
[1673936257560,0.24497459,21145.0,21144.0,0.3]
[1673936257814,0.24497459,21145.0,21144.0,0.772947]
[1673936258821,0.24497459,21145.0,21144.0,0.779947]
[1673936259070,0.10356435,21145.0,21144.0,0.92174784]
[1673936259557,0.24497459,21145.0,21144.0,0.779947]
[1673936260058,0.10356435,21145.0,21144.0,0.779947]
[1673936260807,0.10362632,21145.0,21144.0,0.779947]
[1673936261064,0.10356435,21145.0,21144.0,0.779947]
[1673936262106,0.10356435,21145.0,21144.0,0.92174784]
[1673936263666,0.10356435,21145.0,21144.0,0.779947]
[1673936264938,0.10356435,21145.0,21144.0,0.92174784]
[1673936266573,0.13824755,21146.0,21144.0,1.183034]
[1673936266829,0.13824755,21146.0,21145.0,0.14178297]
[1673936267082,0.13824755,21146.0,21145.0,1.08763297]
[1673936267335,0.13824755,21146.0,21145.0,1.38763297]
[1673936268104,0.02634755,21146.0,21145.0,1.9393305]
[1673936268372,0.02634755,21146.0,21145.0,1.39460304]
[1673936268570,0.02634755,21146.0,21145.0,1.60727501]
[1673936268819,0.02640952,21146.0,21145.0,1.79763098]
[1673936269077,0.02634755,21146.0,21145.0,1.65587592]
[1673936269325,0.02634755,21146.0,21145.0,1.93932592]
[1673936269582,0.02634755,21146.0,21145.0,1.39457001]
[1673936270609,0.02634755,21146.0,21145.0,1.25285]
[1673936270865,0.02634755,21146.0,21145.0,1.60724198]
[1673936271131,0.02634755,21146.0,21145.0,1.39457001]
[1673936275996,0.02634755,21146.0,21145.0,1.60724198]
[1673936276985,0.02634755,21146.0,21145.0,1.25285]
[1673936279576,0.02634755,21146.0,21145.0,1.39457001]
[1673936281882,0.13729393,21146.0,21145.0,0.95285]
[1673936282079,0.45915093,21146.0,21145.0,0.95285]
[1673936282333,0.45908896,21146.0,21145.0,0.95285]
[1673936284386,0.13723196,21146.0,21145.0,0.95285]
[1673936284637,0.45908896,21146.0,21145.0,0.95285]
[1673936284886,0.68268896,21146.0,21145.0,0.007]
[1673936285415,0.8240992,21146.0,21145.0,0.007]
[1673936285950,0.82416117,21146.0,21145.0,0.002]
[1673936286215,0.68275093,21146.0,21145.0,0.002]
[1673936286462,0.82416117,21146.0,21145.0,0.002]
[1673936286720,1.0362785,21146.0,21145.0,0.002]
[1673936286995,0.82416117,21146.0,21145.0,0.002]
[1673936287769,1.0362785,21146.0,21145.0,0.002]
[1673936289069,0.9252785,21146.0,21145.0,0.002]
[1673936290927,0.78386826,21146.0,21145.0,0.002]
[1673936291182,0.57175093,21146.0,21145.0,0.002]
[1673936291493,0.71316117,21146.0,21145.0,0.002]
[1673936291726,0.57175093,21146.0,21145.0,0.002]
[1673936291979,0.9252785,21146.0,21145.0,0.002]
[1673936293458,0.78386826,21146.0,21145.0,0.002]
[1673936293716,0.71339126,21146.0,21145.0,0.002]
[1673936293975,0.92550859,21146.0,21145.0,0.002]
[1673936294503,1.06668102,21146.0,21145.0,0.002]
[1673936295780,0.78386826,21146.0,21145.0,0.002]
[1673936296045,1.06668102,21146.0,21145.0,0.002]
[1673936296282,0.92547949,21146.0,21145.0,0.002]
[1673936296532,0.71336216,21146.0,21145.0,0.002]
[1673936296793,0.92547949,21146.0,21145.0,0.002]
[1673936297376,0.78386826,21146.0,21145.0,0.002]
[1673936297816,1.06695053,21146.0,21145.0,0.002]
[1673936298032,0.85456369,21146.0,21145.0,0.002]
[1673936298518,1.06695348,21146.0,21145.0,0.002]
[1673936298776,0.71335026,21146.0,21145.0,0.002]
[1673936298995,0.82415026,21146.0,21145.0,0.002]
[1673936299278,0.89494072,21146.0,21145.0,0.002]
[1673936299780,0.82413325,21146.0,21145.0,0.002]
[1673936300051,0.71237128,21146.0,21145.0,0.002]
[1673936301102,0.34808896,21146.0,21145.0,0.002]
[1673936301366,0.48967128,21146.0,21145.0,0.002]
[1673936303673,0.34815093,21146.0,21145.0,0.002]
[1673936305408,0.48973325,21146.0,21145.0,0.002]
[1673936305889,0.48967128,21146.0,21145.0,0.002]
[1673936306150,0.34808896,21146.0,21145.0,0.002]
[1673936306401,0.02623196,21146.0,21145.0,0.002]
[1673936306665,0.16781428,21146.0,21145.0,0.002]
[1673936306925,0.02623196,21146.0,21145.0,0.002]
[1673936307440,0.02629393,21146.0,21145.0,0.002]
[1673936307956,0.34815093,21146.0,21145.0,0.002]
[1673936309480,0.02629393,21146.0,21145.0,0.002]
[1673936310798,0.16787625,21146.0,21145.0,0.002]
[1673936311061,0.48973325,21146.0,21145.0,0.002]
[1673936313219,0.48967128,21146.0,21145.0,0.002]
[1673936313467,0.48967128,21146.0,21144.0,0.27289001]
[1673936313730,0.321857,21145.0,21144.0,0.27289001]
[1673936313988,0.02623196,21146.0,21144.0,0.27289001]
[1673936315022,0.007,21145.0,21144.0,0.27989001]
[1673936315236,0.16781428,21146.0,21144.0,0.27289001]
[1673936315531,0.17481428,21146.0,21144.0,0.27989001]
[1673936315794,0.16781428,21146.0,21144.0,0.27289001]
[1673936316036,0.14858232,21145.0,21144.0,0.27989001]
[1673936316290,0.14858232,21145.0,21144.0,0.27289001]
[1673936316291,0.32191897,21145.0,21144.0,0.27289001]
[1673936316556,6.197e-05,21145.0,21144.0,0.007]
[1673936316828,0.38720407,21146.0,21144.0,0.007]
[1673936317095,0.38020407,21146.0,21143.0,0.5235459]
[1673936317349,0.328857,21145.0,21144.0,0.007]
[1673936317920,0.007,21145.0,21144.0,0.007]
[1673936318130,0.16781428,21146.0,21143.0,0.5235459]
[1673936318412,0.17481428,21146.0,21143.0,0.5305459]
[1673936318649,0.16781428,21146.0,21143.0,0.5235459]
[1673936318906,0.16781428,21146.0,21144.0,0.007]
[1673936318907,0.007,21145.0,21144.0,0.007]
[1673936319186,0.007,21145.0,21143.0,0.5235459]
[1673936319187,0.49130407,21146.0,21143.0,0.5235459]
[1673936319425,0.49830407,21146.0,21143.0,0.5305459]
[1673936319713,0.46343932,21145.0,21143.0,0.5235459]
[1673936319972,0.14858232,21145.0,21144.0,0.007]
[1673936320261,0.35397211,21145.0,21143.0,0.5235459]
[1673936320557,0.321857,21144.0,21143.0,0.5235459]
[1673936321076,0.35397211,21145.0,21143.0,0.5235459]
[1673936321352,0.35397211,21145.0,21143.0,0.5305459]
[1673936321628,0.35397211,21145.0,21143.0,0.5235459]
[1673936321867,0.007,21144.0,21143.0,0.5235459]
[1673936322133,0.007,21144.0,21143.0,0.8235459]
[1673936322427,0.007,21144.0,21143.0,0.8305459]
[1673936322695,0.007,21144.0,21143.0,1.37686221]
[1673936322951,0.27891428,21146.0,21143.0,1.37686221]
[1673936322952,0.49130407,21146.0,21143.0,0.96526591]
[1673936323253,0.007,21144.0,21143.0,0.96926591]
[1673936323511,0.007,21144.0,21143.0,0.8275459]
[1673936323784,0.007,21144.0,21143.0,0.96926591]
[1673936324576,0.14158232,21145.0,21143.0,0.96526591]
[1673936324838,0.14158232,21145.0,21143.0,0.8305459]
[1673936325093,0.14158232,21145.0,21143.0,0.8235459]
[1673936325342,0.007,21144.0,21143.0,0.8275459]
[1673936325594,0.49130407,21146.0,21143.0,0.96526591]
[1673936325863,0.007,21145.0,21143.0,0.97226591]
[1673936326639,0.49130407,21146.0,21143.0,0.96526591]
[1673936326895,6.197e-05,21145.0,21143.0,0.96526591]
[1673936327188,0.49130407,21146.0,21143.0,0.96526591]
[1673936327448,0.49830407,21146.0,21143.0,0.97226591]
[1673936327723,0.49130407,21146.0,21143.0,0.96526591]
[1673936327976,0.007,21145.0,21143.0,0.97226591]
[1673936328238,0.49130407,21146.0,21143.0,0.96526591]
[1673936328758,0.49830407,21146.0,21143.0,0.97226591]
[1673936330361,0.28591428,21146.0,21144.0,0.3]
[1673936330612,0.28591428,21146.0,21144.0,0.772946]
[1673936331280,0.14158232,21145.0,21144.0,0.472946]
[1673936331521,0.321857,21145.0,21144.0,0.479946]
[1673936331729,0.49836604,21146.0,21144.0,0.479946]
[1673936331945,0.321857,21145.0,21144.0,0.6428899]
[1673936332181,0.03323196,21146.0,21144.0,0.92166601]
[1673936332393,0.17481428,21146.0,21144.0,0.92166601]
[1673936332615,0.17481428,21146.0,21144.0,0.62166601]
[1673936333306,0.38720407,21146.0,21144.0,0.479946]
[1673936333527,0.38020407,21146.0,21144.0,0.472946]
[1673936333768,0.007,21145.0,21144.0,0.62166601]
[1673936333984,0.16781428,21146.0,21144.0,0.91466601]
[1673936334217,0.17481428,21146.0,21144.0,0.62166601]
[1673936334437,0.16781428,21146.0,21144.0,0.61466601]
[1673936334868,0.007,21145.0,21144.0,0.62166601]
[1673936335103,0.16781428,21146.0,21144.0,0.91466601]
[1673936335327,6.197e-05,21145.0,21144.0,0.479946]
[1673936335573,0.17481428,21146.0,21144.0,0.479946]
[1673936336157,0.03323196,21146.0,21144.0,0.62166601]
[1673936336420,0.02623196,21146.0,21144.0,0.61466601]
[1673936336639,0.007,21145.0,21144.0,0.62166601]
[1673936336863,0.02623196,21146.0,21144.0,0.91466601]
[1673936337075,0.02623196,21146.0,21144.0,0.62166601]
[1673936337299,0.02623196,21146.0,21144.0,0.61466601]
[1673936337736,0.007,21145.0,21144.0,0.62166601]
[1673936337991,0.02623196,21146.0,21145.0,8.307e-05]
[1673936338164,0.03323196,21146.0,21145.0,8.307e-05]
[1673936338391,0.02623196,21146.0,21145.0,8.307e-05]
[1673936339476,0.16781428,21146.0,21145.0,8.307e-05]
[1673936339911,0.35508896,21146.0,21145.0,0.00708307]
[1673936340129,0.03323196,21146.0,21145.0,0.00708307]
[1673936340343,0.01323196,21146.0,21145.0,0.00708307]
[1673936340563,0.01323196,21146.0,21145.0,0.30708307]
[1673936340748,0.01323196,21146.0,21145.0,0.00708307]
[1673936341195,0.01323196,21146.0,21145.0,0.30708307]